Cogmind - Beta 13 --- EXPLORER MODE // 2024.05.09 @ 20:46:04 Player: tcfire Result: Destroyed by B-75 Beast with Heavy Plasma Cannon Performance ------------- Evolutions (2) 1000 Regions Visited (4) 800 Robots Destroyed (72) 360 Value Destroyed (2169) 2169 Prototype IDs (3) 60 Alien Tech Used (0) 0 Bonus (277) 277 TOTAL SCORE: 4666 Bonus ------- High Alert Combat Kills 77 Entered Garrisons 200 Cogmind --------- Core Integrity 0/550 Matter 258/300 Energy 289/290 System Corruption 0% Temperature Cool (12) Movement Core (900) Ox17 Location -8/Garrison Parts ------- > --- POWER (1) -------- Improved Deuterium Engine > --- PROPULSION (3) --- (None) > --- UTILITY (5) ------ High-capacity Storage Unit > --- WEAPON (3) ------- Gauss Rifle > --- INVENTORY (20) --- Improved Deuterium Engine Improved Deuterium Engine Improved Deuterium Engine Improved Heat Sink Improved Heat Sink Advanced Heat Sink Large Matter Pod (150) Improved Sensor Array Hacking Suite Heavy Particle Cannon Gauss Rifle Gauss Rifle Gauss Rifle Datajack Peak State ------------ > --- POWER ------------ Light Deuterium Engine > --- PROPULSION ------- Wheel Wheel Compact Wheel > --- UTILITY ---------- Advanced Heat Sink High-capacity Storage Unit Terrain Scan Processor Transport Network Coupler Tractor Beam > --- WEAPON ----------- Heavy Particle Cannon Heavy Particle Cannon Heavy Particle Cannon > --- INVENTORY -------- Improved Deuterium Engine Improved Deuterium Engine Improved Deuterium Engine Improved Deuterium Engine Wheel Heat Sink Improved Heat Sink Improved Heat Sink Large Matter Pod Improved Sensor Array Seismic Detector Improved Targeting Computer ECM Suite Gauss Rifle Gauss Rifle Gauss Rifle Gauss Rifle Mini Grenade Launcher Datajack [Rating: 30] Favorites ----------- Power Light Deuterium Engine Engine Light Deuterium Engine Propulsion Wheel Leg Aluminum Leg Wheel Wheel Utility High-capacity Storage Unit Device Advanced Heat Sink Storage High-capacity Storage Unit Processor Transport Network Coupler Protection Hardened Medium Armor Plating Weapon Heavy Particle Cannon Energy Gun Improved EM Shotgun Energy Cannon Heavy Particle Cannon Ballistic Gun Light Assault Rifle Ballistic Cannon Light Cannon Launcher Mini Grenade Launcher Build | -11 -10 -9 -8 -8 ------- Run | Yrd Mat Mat Mat Gar Slots Evolved 5 | . 1 2 2 . Power . | . . . . . Propulsion 1 | . . . 1 . Utility 3 | . 1 2 . . Weapon 1 | . . . 1 . Parts Attached 62 | 5 5 26 22 4 Power 5 | 1 . 2 1 1 Engine 5 | 1 . 2 1 1 Core . | . . . . . Reactor . | . . . . . Propulsion 16 | 2 2 4 7 1 Treads . | . . . . . Leg 7 | 2 2 2 1 . Wheel 9 | . . 2 6 1 Hover . | . . . . . Flight . | . . . . . Utility 16 | 1 1 8 6 . Device 8 | . 1 3 4 . Storage 5 | 1 . 4 . . Processor 2 | . . 1 1 . Hackware . | . . . . . Protection 1 | . . . 1 . Artifact . | . . . . . Weapon 25 | 1 2 12 8 2 Energy Gun 3 | . . 2 1 . Energy Cannon 9 | . . 3 6 . Ballistic Gun 8 | 1 2 3 . 2 Ballistic Cannon 2 | . . 2 . . Launcher 3 | . . 2 1 . Special Weapon . | . . . . . Impact Weapon . | . . . . . Slashing Weapon . | . . . . . Piercing Weapon . | . . . . . Special Melee Weapon . | . . . . . Unidentified Prototypes 3 | . . 2 1 . Parts Lost 14 | . . 1 5 8 Power 1 | . . . . 1 Propulsion 7 | . . . 3 4 Utility 4 | . . 1 2 1 Weapon 2 | . . . . 2 Highest Loss Streak 5 | . . 1 5 4 To Critical Strikes 1 | . . . . 1 Average Slot Usage (%) 88 | . 72 77 96 85 Engine 8 | . 12 9 8 8 Leg 5 | . 24 7 1 . Wheel 17 | . . 12 22 20 Device 14 | . 6 13 15 16 Storage 9 | . 12 10 8 8 Processor 8 | . . 4 12 7 Energy Gun 1 | . . 5 . . Energy Cannon 15 | . . 4 23 15 Ballistic Gun 3 | . 16 5 . 7 Launcher 1 | . . 2 1 . Naked Turns . | . . . . . Heaviest Build 70 | 16 18 61 70 68 Greatest Support 36 | 20 20 26 36 36 Greatest Overweight (x) 21 | 4 5 3 21 17 Average Overweight (x) 1 | 1 . 1 1 1 Largest Inventory Capacity 20 | 10 10 20 20 20 Average Capacity 18 | 8 10 19 20 20 Most Carried 19 | 2 5 10 19 14 Average Carried 8 | . 1 5 11 11 Final Capacity 20 | 10 10 20 20 20 Final Carried 14 | . 5 9 14 14 Class Distribution -------------------- 52% | Scavenger-Skirmisher 29% | Hacker-Mutant 7% | Hacker-Skirmisher 6% | Scavenger-Mutant 3% | Scavenger-Tank Dominant Class ---------------- Hacker-Mutant | -10/Materials Hacker-Mutant | -9/Materials Scavenger-Skirmisher | -8/Materials Scavenger-Skirmisher | -8/Garrison Resources | -11 -10 -9 -8 -8 ----------- Run | Yrd Mat Mat Mat Gar Matter Collected 1227 | 112 178 303 566 68 Remotely 292 | . . . 292 . Salvage Created 2711 | . 163 559 1505 484 Parts 153 | . 11 39 72 31 Haulers Intercepted 6 | . . 2 4 . Recyclers Shooed . | . . . . . Parts Field Recycled . | . . . . . Retrieved Matter . | . . . . . Parts Self-Destructed . | . . . . . Prevented . | . . . . . Kills | -11 -10 -9 -8 -8 ------- Run | Yrd Mat Mat Mat Gar Combat Hostiles Destroyed 51 | . 5 11 21 14 Guns 11 | . 5 3 . 3 Cannons 31 | . . 4 17 10 AOE 7 | . . 4 3 . Classes Destroyed 12 | . 2 3 6 1 Worker 2 | . . . 2 . Builder 2 | . . 2 . . Tunneler 2 | . . . 2 . Hauler 6 | . . 2 4 . Recycler 1 | . . . 1 . Operator 4 | . . . 4 . Watcher 4 | . . . 4 . Swarmer 11 | . 2 2 . 7 Grunt 24 | . 3 5 12 4 Brawler 2 | . . . 1 1 Sentry 13 | . . 4 8 1 Hunter 1 | . . . . 1 Best Kill Streak 12 | . 3 4 12 4 Combat Bots Only 5 | . 3 3 5 4 Max Kills in Single Turn 3 | . 1 2 3 2 Gunslinging . | . . . . . Exploded 2 | . . 2 2 . Melee . | . . . . . Uniques/NPCs Destroyed . | . . . . . Combat | -11 -10 -9 -8 -8 -------- Run | Yrd Mat Mat Mat Gar Hostile Shots Fired 273 | . 20 59 106 88 Missed 86 | . 8 22 26 30 Damage Taken 1926 | . 90 287 1123 426 Core 675 | . 47 70 498 60 Absorbed by Shields . | . . . . . Ignored by Resistances 1027 | . 59 183 502 283 Regen/Repaired (Parts) 189 | . . 67 122 . Core Remaining (%) 87 | 100 81 82 . . Volleys Fired 127 | . 24 25 54 24 Largest 3 | . 2 2 3 3 Hottest 225 | . 40 150 225 225 Shots Fired 286 | . 28 50 139 69 Gun 78 | . 28 28 . 22 Cannon 192 | . . 20 125 47 Launcher 16 | . . 2 14 . Special . | . . . . . Kinetic 73 | . 28 23 . 22 Thermal 182 | . . 10 125 47 Explosive 16 | . . 2 14 . Electromagnetic 15 | . . 15 . . Robot Hit Streak 25 | . 25 16 22 13 Robot Miss Streak 2 | . . 1 2 2 Penetration Max 1 | . . . . 1 Secondary Targets 1 | . . 1 . . Max Gunslinging Chain 1 | . . 1 . . Shots Hit Robots 174 | . 25 31 84 34 Core Hits 103 | . 12 22 50 19 Critical Kills 1 | . . . . 1 Critical Parts Destroyed . | . . . . . Critical Strikes 1 | . . . . 1 Meltdown 1 | . . . . 1 Melee Attacks . | . . . . . Impact . | . . . . . Slashing . | . . . . . Piercing . | . . . . . Sneak Attacks . | . . . . . Combat Hostiles . | . . . . . Follow-up Attacks . | . . . . . Damage Inflicted 4786 | . 210 788 2905 883 Guns 704 | . 210 286 . 208 Cannons 3081 | . . 306 2100 675 Explosions 1001 | . . 196 805 . Melee . | . . . . . Ramming . | . . . . . Kinetic 636 | . 210 218 . 208 Thermal 3055 | . . 280 2100 675 Explosive 921 | . . 116 805 . Electromagnetic 174 | . . 174 . . Impact . | . . . . . Slashing . | . . . . . Piercing . | . . . . . Highest Corruption . | . . . . . Average Corruption . | . . . . . Corruption Purged . | . . . . . Corruption Blocked . | . . . . . Overload Shots . | . . . . . Overflow Damage 135 | . . 10 113 12 Projectiles 47 | . . 10 25 12 Explosions 88 | . . . 88 . Melee . | . . . . . Knockbacks . | . . . . . Impact . | . . . . . Kinetic . | . . . . . Secondary . | . . . . . Self-Inflicted Damage 17 | . . 17 . . Shots 1 | . . 1 . . Rammed . | . . . . . Targets Rammed . | . . . . . Kicked . | . . . . . Crushed . | . . . . . Highest Temperature 834 | . 15 168 834 288 Average Temperature 187 | . 7 63 239 106 Received Heat Transfer 1017 | . 54 147 720 96 Effects 49 | . . . 49 . Shutdowns 7 | . . . 7 . Energy Bleed 1 | . . . 1 . Interference 11 | . . . 11 . Short Circuit 4 | . . . 4 . Damage (minor) 6 | . . . 6 . Damage (major) 17 | . . . 17 . Damage (core) 3 | . . . 3 . Siege Activations . | . . . . . Robots Corrupted . | . . . . . Combat Hostiles . | . . . . . Parts Fried 1 | . . 1 . . Impact Corruptions . | . . . . . Robots Melted 2 | . . . 1 1 Combat Hostiles 2 | . . . 1 1 Parts Melted 8 | . . . 6 2 Heat Transferred 4533 | . . 446 3108 979 Parts Sabotaged . | . . . . . Parts Stolen . | . . . . . Parts Stripped . | . . . . . Power Chain Reactions 1 | . . 1 . . Alert | -11 -10 -9 -8 -8 ------- Run | Yrd Mat Mat Mat Gar Peak Influence 650 | . 135 248 650 337 Initial 62 | . . 40 46 62 Average 210 | . 72 134 278 204 Maximum Alert Level 2 | . . 1 2 1 Low Security (%) 54 | 100 100 84 33 45 Level 1 40 | . . 15 56 54 Level 2 5 | . . . 10 . Level 3 . | . . . . . Level 4 . | . . . . . Level 5 . | . . . . . High Security . | . . . . . Max Security . | . . . . . Squads Dispatched 1 | . . 1 . . Investigation . | . . . . . Extermination . | . . . . . Reinforcement 1 | . . 1 . . Assault . | . . . . . Garrison . | . . . . . Intercept . | . . . . . Searches Triggered . | . . . . . Construction Impeded . | . . . . . Haulers Reinforced . | . . . . . Active Scanning Responses . | . . . . . Cargo Convoy Interrupts . | . . . . . Stealth | -11 -10 -9 -8 -8 --------- Run | Yrd Mat Mat Mat Gar Distress Signals 4 | . . 2 2 . Communications Jammed . | . . . . . Distress Signals . | . . . . . Times Spotted 70 | . 6 16 31 17 Peak Tracking Total 6 | . 2 3 5 6 Tactical Retreats . | . . . . . Traps | -11 -10 -9 -8 -8 ------- Run | Yrd Mat Mat Mat Gar Traps Triggered 5 | . 2 . 1 2 Indirectly . | . . . . . Trap Hack Attempts . | . . . . . Triggered . | . . . . . Disarmed . | . . . . . Reprogrammed . | . . . . . Reused . | . . . . . Traps Extracted . | . . . . . Installed . | . . . . . Triggered . | . . . . . Machines | -11 -10 -9 -8 -8 ---------- Run | Yrd Mat Mat Mat Gar Machines Disabled 9 | . . . 9 . Max in Single Turn 3 | . . . 3 . Machines Repaired . | . . . . . Machines Dismantled . | . . . . . Machines Sabotaged . | . . . . . Overloaded Fab Kills . | . . . . . Hacking | -11 -10 -9 -8 -8 --------- Run | Yrd Mat Mat Mat Gar Machines Accessed 5 | . . 1 3 1 Terminals 1 | . . . . 1 Fabricators . | . . . . . Repair Stations 2 | . . 1 1 . Recycling Units . | . . . . . Scanalyzers 1 | . . . 1 . Garrison Access 1 | . . . 1 . Total Hacks 9 | . . 2 6 1 Successful 8 | . . 2 5 1 Failed 1 | . . . 1 . Catastrophic . | . . . . . Database Lockouts . | . . . . . Manual . | . . . . . Terminals 1 | . . . . 1 Fabricators . | . . . . . Repair Stations 4 | . . 2 2 . Recycling Units . | . . . . . Scanalyzers 2 | . . . 2 . Garrison Access 2 | . . . 2 . Terminal Hacks 1 | . . . . 1 Garrison Registry 1 | . . . . 1 Fabricator Hacks . | . . . . . Repair Station Hacks 4 | . . 2 2 . Scan Component 2 | . . 1 1 . Repair 2 | . . 1 1 . Recycling Unit Hacks . | . . . . . Scanalyzer 2 | . . . 2 . Insert Component 1 | . . . 1 . Analyze 1 | . . . 1 . Garrison Access Hacks 1 | . . . 1 . Unlock Access 1 | . . . 1 . Unauthorized Hacks . | . . . . . Terminals . | . . . . . Fabricators . | . . . . . Repair Stations . | . . . . . Recycling Units . | . . . . . Scanalyzers . | . . . . . Garrison Access . | . . . . . Data Cores Recovered 1 | . . . 1 . Used . | . . . . . Hacking Detections 2 | . . 1 1 . Full Trace Events . | . . . . . Feedback Events . | . . . . . Feedback Blocked . | . . . . . Robot Schematics Acquired . | . . . . . Robots Built . | . . . . . Authchips . | . . . . . Time . | . . . . . Total Robot Build Rating . | . . . . . Part Schematics Acquired 1 | . . . 1 . Parts Built . | . . . . . Authchips . | . . . . . Time . | . . . . . Total Part Build Rating . | . . . . . Parts Repaired 2 | . . 1 1 . Time 70 | . . 32 38 . Parts Recycled . | . . . . . Recycled Matter . | . . . . . Retrieved Matter . | . . . . . Retrieved Components . | . . . . . Parts Scanalyzed 1 | . . . 1 . Part Schematics Acquired 1 | . . . 1 . Parts Damaged . | . . . . . Bothacking | -11 -10 -9 -8 -8 ------------ Run | Yrd Mat Mat Mat Gar Used RIF Installer . | . . . . . Robots Hacked . | . . . . . Non-combat . | . . . . . Combat . | . . . . . Robot Hacks Applied . | . . . . . Relay Couplers Released . | . . . . . Fabnet Peak Effective % . | . . . . . Robots Rewired . | . . . . . Allies Hacked . | . . . . . Hacks Repelled . | . . . . . Allies | -11 -10 -9 -8 -8 -------- Run | Yrd Mat Mat Mat Gar Total Allies . | . . . . . Largest Group . | . . . . . Highest-Rated Group . | . . . . . Highest-Rated Ally . | . . . . . Total Orders . | . . . . . Ally Attacks . | . . . . . Total Damage . | . . . . . Kills . | . . . . . Allies Corrupted . | . . . . . Allies Melted . | . . . . . Intel | -11 -10 -9 -8 -8 ------- Run | Yrd Mat Mat Mat Gar Robot Analysis Total . | . . . . . Derelict Logs Recovered . | . . . . . Drone Launches . | . . . . . Drone Recoveries . | . . . . . Exploration | -11 -10 -9 -8 -8 ------------- Run | Yrd Mat Mat Mat Gar Turns Passed 2847 | 66 298 601 1526 356 Spaces Moved 1250 | 34 196 327 474 219 Core 25 | 17 1 . 4 3 Treads . | . . . . . Legs 307 | 17 195 91 4 . Wheels 918 | . . 236 466 216 Hover . | . . . . . Flight . | . . . . . Fastest Speed 50 | 50 120 110 101 101 Average Speed 121 | 142 120 127 115 120 Slowest Speed 1100 | 250 300 260 1100 900 Overloaded Moves . | . . . . . Propulsion Burnouts . | . . . . . Robots Hopped . | . . . . . Cave-ins Triggered . | . . . . . Exploration Rate (%) 31 | 5 38 31 40 42 Regions Visited 4 Branch Regions . Pre-discovered Areas . | . . . . . Known Exits Taken 4 | 1 1 1 1 . Unknown Exits Taken . | . . . . . Scrap Searched . | . . . . . Spaces Dug . | . . . . . Terrain Destroyed 196 | . . 22 174 . Melee . | . . . . . Projectile 26 | . . 1 25 . AOE 170 | . . 21 149 . Terrain Rammed . | . . . . . Walls Destroyed . | . . . . . Machines Disabled . | . . . . . Actions | -11 -10 -9 -8 -8 --------- Run | Yrd Mat Mat Mat Gar Total 2364 | 51 234 465 1345 269 Wait 793 | 8 . 34 750 1 Move 1247 | 33 195 326 474 219 Hop . | . . . . . Pick Up 74 | 5 10 31 28 . Fast Attach . | . . . . . Attach 38 | 5 5 9 15 4 Detach 7 | . . 1 2 4 Swap 24 | . . 17 7 . Drop 38 | . . 22 15 1 Fire 127 | . 24 25 54 24 Melee . | . . . . . Ram . | . . . . . Kick . | . . . . . Crush . | . . . . . Escape Stasis 16 | . . . . 16 Rewire . | . . . . . Trap . | . . . . . Miscellaneous . | . . . . . Route ------- -11/Scrapyard -10/Materials -9/Materials -8/Materials (discovered 2 exits: *Fac / Gar) -8/Garrison (discovered 3 exits: Mat x3) History --------- Turn | Location | Event 26 | -11/Scrapyard | Identified exit to Materials 26 | -11/Scrapyard | Discovered exit to Materials (range 15) 67 | -11/Scrapyard | Entered Materials 67 | -10/Materials | Evolved 1 slot: Utility x1 317 | -10/Materials | Build established: Hacker-Mutant 317 | -10/Materials | Identified exit to Materials 317 | -10/Materials | Discovered exit to Materials (range 15) 365 | -10/Materials | Entered another Materials area 365 | -9/Materials | Evolved 2 slots: Utility x2 823 | -9/Materials | Repaired Imp. Ion Engine 845 | -9/Materials | Identified exit to Materials 845 | -9/Materials | Discovered exit to Materials (range 4) 966 | -9/Materials | Entered another Materials area 966 | -8/Materials | Evolved 2 slots: Propulsion x1, Weapon x1 1274 | -8/Materials | Core integrity fell below 50% 1308 | -8/Materials | Lost 5 parts (3n2u) 1606 | -8/Materials | Build established: Scavenger-Skirmisher 1817 | -8/Materials | Identified exit to Factory 1817 | -8/Materials | Discovered exit to Factory (range 16) 1879 | -8/Materials | Core integrity fell below 20% 1992 | -8/Materials | Repaired Hvy. Particle Cannon 2492 | -8/Materials | Identified exit to Garrison 2492 | -8/Materials | Entered Garrison 2556 | -8/Garrison | Triggered checkpoint 2558 | -8/Garrison | Triggered checkpoint 2558 | -8/Garrison | Triggered checkpoint 2604 | -8/Garrison | Lost 4 parts (1p1n1u1w) 2644 | -8/Garrison | Triggered checkpoint 2679 | -8/Garrison | Identified exit to Materials 2679 | -8/Garrison | Discovered exit to Materials (range 78) 2679 | -8/Garrison | Discovered exit to Materials (range 64) 2679 | -8/Garrison | Discovered exit to Materials (range 6) 2786 | -8/Garrison | Triggered checkpoint 2813 | -8/Garrison | Spotted B-75 Beast 2848 | -8/Garrison | Destroyed by B-75 Beast with Heavy Plasma Cannon Last Messages --------------- Com. Wheel destroyed. Slug penetrates H-55 Commando. H-55 Commando destroyed. Hvy. Particle Cannon destroyed. S-10 Pest destroyed. Slug penetrates S-10 Pest. Destroyed Lgt. Ion Engine. Slug penetrates S-10 Pest. S-10 Pest destroyed. Beams of light sweep through the air. An alarm sounds. Wheel destroyed. Critical hit (Burn: +37). Y-45 Defender destroyed. B-75 Beast springs to life. Knocked back. ALERT: Dispatching investigation squad to Materials. Acquired 2 matter. Discarded Transport Network Coupler. Knocked back. Wheel destroyed. Map ----- +----------------------------------------------------+ | ^#??????# ###### ## #??????????????????????????? | | #??????# + ## #??????????????????????????? | | #??????# ##### ### #??????????????????????????? | | ######## #???# #?# #??????????????????????????? | | ^## ## #???# #?#^^#??????????????????????????? | | ^## ## ##??# #?# #??????????????????????????? | | ####+### #??????????????????????????? | | =[ #??????????????????????????? | | *%[ #??????????????????????????? | | ## ## ###########??????????????????????????? | | ## ## = ###??????????????????????????????????? | | * #??????????????????????????????????? | | [%[ #??????????????????????????????????? | | *%= ###????????????????????????????????? | | % + #????????????????????????????????? | | ## ## ### #????????????????????????????????? | | ## ## ###+########?????????????????????????? | | #?????????????????????????? | | = #####?????????????????????? | | =%= + #?????????????????????? | | ## " ##%+####+####%[ ### #?????????????????????? | | ##"%" ##=[#??# #??# %=#?# #?????????????????????? | | ###+#+## [#??# #??# / #?# #?????????????######### | | #?# # #??# #??# #?# #?????????????#"""""""" | | #?# #### #??# #??#^ ^###+##???????????##"]]=[!!" | | #?# #??# #??# #??# ##@!%#???????????# ^ | | ### #??# #### #### ##!*[##################### | | + #??# " [BB %" | | #####??# + %BB " | | ##??????#### ####### ########## ############# | | ???????????# #?????# #???????#"""""#??# ^ | | ???????????# #?????# #???????#######??##"!]/=!=" | | ???????????# #?????# #?????????????????#"""""""" | | ???????????# #?????# #?????????????????######### | | ???????????# #?????# #?????????????????????????? | | ???????????# #?????# #?????????????????????????? | | ???????????# #?????# #?????????????????????????? | | ???????????# #?????# #?????????????????????????? | | ???????????# #?????# #?????????????????????????? | | ???????????# #?????# #?????????????????????????? | | ???????????# #?????# #?????????????????????????? | | ????????#### #?????# #?????????????????????????? | | ????????# # #?????# #?????????????????????????? | | ????????# # #?????# #?????????????????????????? | | ????????# ## #?????# #?????????????????????????? | | ???????##+## #####?# #?????????????????????????? | | ???????# #?# #?????????????????????????? | | ???????# #?# #?????????????????????????? | | ???????# #?# ###???????????????????????? | | ???????# " ### #???????????????????????? | +----------------------------------------------------+ Best States ------------- Heat Dissipation 50 Energy Generation 16 Energy Capacity 290 Matter Stores 300 Matter Capacity 450 Sight Range 16 Robot Scan Range 15 Terrain Scan Range 16 Terrain Scan Density 85 Armor Coverage 225 Resistance: KI 35 Resistance: TH 35 Resistance: EX 35 Resistance: EM 35 Resistance: I 35 Resistance: S 35 Resistance: P 35 Evasion (%) 55 Offensive Hacking 20 Item Schematics ----------------- Mni. Grenade Launcher | -8/Materials | Scanalyzed Robot Schematics ------------------ None Fabricated ------------ Nothing Alien Tech Used ----------------- None Achievements -------------- None Challenges ------------ None Game ------ Seed StasisBackupClaws Manual? 0 Play Time 00:33:06 Cumulative 9.2 hours Start 2024.05.09 @ 20:05:16 End 2024.05.09 @ 20:46:04 Sessions 1 Manual Loads 0 Difficulty Explorer Special Mode None Game No. 10 Rogue 0 Adventurer 0 Explorer 10 Win Type - Total 0 Types 0/0/0/0/0/0/0/0/0 Lore% 3 Gallery% 17 Achievement% 16 Wizard Run 0 Options --------- Layout 0 ASCII 0 Keyboard 0 Movement Mouse Keybinds 0 Fullscreen 1 Font 18/SmallcapsGlow Map View 76x50 Zoom Use 0% Tactical HUD 0 Map Filters NONE Filters NONE Steam 1 RUN: 18ce147a-fe61-4a77-a549-925156f64bd9